fUST/lending_fUST_20250403
["ID","MTS","AMOUNT","RATE_DAILY","PERIOD"]
[357038301,1743609703873,4000.41,0.00025,30]
[357038310,1743609930149,171.251996,0.00013699,2]
[357038312,1743609973247,1000.0,0.00025,30]
[357038313,1743609980886,1000.0,0.00025,30]
[357038314,1743609990928,1000.0,0.00025,30]
[357038364,1743610159225,250.096781,0.00025,30]
[357038365,1743610159962,250.096781,0.00025,30]
[357038366,1743610160315,250.096781,0.00025,30]
[357038367,1743610160620,250.096781,0.00025,30]
[357038368,1743610160918,250.096781,0.00025,30]
[357038413,1743610232133,-921.51350808,0.0001633,2]
[357038414,1743610232146,-578.59362866,0.0001633,2]
[357038415,1743610232208,-1099.76008144,0.0001633,2]
[357038416,1743610232221,-4309.52437028,0.0001633,2]
[357038417,1743610232232,-497.3231814,0.00016431,2]
[357038418,1743610232241,-411.5022233,0.00016431,2]
[357038419,1743610232252,-300.0,0.00016499,2]
[357038420,1743610232262,-2384.83529537,0.000165,2]
[357038421,1743610232273,-235.961928,0.00016562,2]
[357038422,1743610232283,-150.04140902,0.00018438,2]
[357038423,1743610232293,-500.0,0.00018439,2]
[357038424,1743610232303,-500.0,0.00018439,2]
[357038425,1743610232313,-500.0,0.00018713,2]
[357038426,1743610232323,-500.0,0.00018713,2]
[357038427,1743610232334,-500.0,0.00018713,2]
[357038428,1743610232344,-500.0,0.00018713,2]
[357038429,1743610232354,-500.0,0.00018713,2]
[357038430,1743610232367,-500.0,0.00018713,2]
[357038431,1743610232377,-500.0,0.00018713,2]
[357038432,1743610232387,-500.0,0.00018743,2]
[357038433,1743610232397,-500.0,0.00018743,2]
[357038434,1743610232406,-500.0,0.00018743,2]
[357038435,1743610232415,-500.0,0.00018743,2]
[357038436,1743610232425,-500.0,0.00018743,2]
[357038437,1743610232434,-500.0,0.00018743,2]
[357038438,1743610232444,-2308.10861201,0.00018744,2]
[357038439,1743610232453,-500.0,0.00018799,2]
[357038440,1743610232464,-172.06511227,0.000188,2]
[357038441,1743610232473,-400.75176188,0.000188,2]
[357038442,1743610232483,-270.91285675,0.00018843,2]
[357038443,1743610232492,-500.0,0.00018843,2]
[357038444,1743610232502,-500.0,0.00018843,2]
[357038445,1743610232512,-500.0,0.00018843,2]
[357038446,1743610232521,-500.0,0.00018843,2]
[357038447,1743610232531,-500.0,0.00018843,2]
[357038448,1743610232541,-500.0,0.00018843,2]
[357038449,1743610232550,-461.13623141,0.00018843,2]
[357038450,1743610232560,-160.0,0.00018844,2]
[357038451,1743610232570,-160.0,0.00018844,2]
[357038452,1743610232579,-160.0,0.00018844,2]
[357038453,1743610232589,-12458.93820146,0.00018844,2]
[357038454,1743610232599,-836.00498798,0.00018844,2]
[357038455,1743610232613,-419.02799708,0.00018845,2]
[357038456,1743610232623,-160.0,0.00018845,2]
[357038457,1743610232633,-2200.80790413,0.00018863,2]
[357038458,1743610232643,-500.0,0.00018873,2]
[357038459,1743610232653,-500.0,0.00018873,2]
[357038460,1743610232662,-500.0,0.00018873,2]
[357038461,1743610232674,-500.0,0.00018873,2]
[357038462,1743610232684,-500.0,0.00018873,2]
[357038463,1743610232699,-500.0,0.00018873,2]
[357038464,1743610232708,-200.0,0.00018889,2]
[357038465,1743610232718,-155.0,0.00018889,2]
[357038466,1743610232728,-52188.05792749,0.000189,2]
[357038544,1743610238489,-4784.54118444,0.00017356,2]
[357038545,1743610238502,-4924.13999995,0.00017356,2]
[357038558,1743610243837,-341.973,0.00017356,2]
[357038565,1743610243932,-14849.34581561,0.00017356,2]
[357038566,1743610243941,-401.0,0.00018611,2]
[357038567,1743610243950,-93315.9157965,0.000189,2]
[357038568,1743610244367,-136714.40422274,0.000189,2]
[357038569,1743610244378,-172.06511226,0.000189,2]
[357038570,1743610244387,-2539.63291443,0.000189,2]
[357038571,1743610244397,-158.561,0.00018981,2]
[357038572,1743610244406,-500.0,0.00018987,2]
[357038573,1743610244416,-500.0,0.00018987,2]
[357038574,1743610244426,-500.0,0.00018987,2]
[357038575,1743610244436,-500.0,0.00018999,2]
[357038576,1743610244447,-543.15185167,0.00018999,2]
[357038577,1743610244456,-69580.21532613,0.00019,4]
[357038578,1743610244469,-502.76834211,0.00019,4]
[357038579,1743610244482,-11151.9531,0.00019,4]
[357038580,1743610244494,-372.20591738,0.00019,4]
[357038602,1743610246197,-2629.189125,0.00019,4]
[357038604,1743610246210,-30400.9780734,0.00019,4]
[357038607,1743610246223,-1045.27911633,0.00019,4]
[357038615,1743610246305,-19459.14305908,0.00019,4]
[357038617,1743610246316,-5696.43199283,0.00019,2]
[357038619,1743610246327,-250.096781,0.00019,4]
[357038621,1743610246338,-500.0,0.00019017,2]
[357038622,1743610246347,-500.0,0.00019017,2]
[357038624,1743610246357,-542.0,0.00019021,2]
[357038626,1743610246368,-2258.0,0.00019021,2]
[357038627,1743610246377,-222.0,0.00019021,2]
[357038629,1743610246387,-500.0,0.00019072,2]
[357038630,1743610246396,-500.0,0.00019072,2]
[357038632,1743610246406,-500.0,0.00019072,2]
[357038634,1743610246416,-500.0,0.00019072,2]
[357038637,1743610246425,-574.15147712,0.00019072,2]
[357038639,1743610246435,-193.07,0.00019073,2]
[357038642,1743610246445,-500.0,0.00019261,2]
[357038646,1743610246457,-500.0,0.00019261,2]
[357038647,1743610246467,-500.0,0.00019261,2]
[357038649,1743610246477,-500.0,0.00019291,2]
[357038651,1743610246489,-500.0,0.00019291,2]
[357038653,1743610246499,-6297.96271088,0.00019329,2]
[357038654,1743610246509,-2514.9483477,0.00019399,2]
[357038656,1743610246520,-250.096781,0.00019436,4]
[357038658,1743610246531,-2539.63291435,0.00019452,2]
[357038659,1743610246540,-500.0,0.00019535,2]
[357038661,1743610246551,-500.0,0.00019535,2]
[357038663,1743610246561,-500.0,0.00019565,2]
[357038665,1743610246572,-500.0,0.00019565,2]
[357038666,1743610246582,-306.19169247,0.00019733,2]
[357038668,1743610246592,-500.0,0.00019778,2]
[357038670,1743610246602,-500.0,0.00019809,2]
[357038671,1743610246612,-630.8290271,0.00019809,2]
[357038673,1743610246623,-500.0,0.00019839,2]
[357038675,1743610246633,-500.0,0.00019839,2]
[357038677,1743610246643,-250.096781,0.00019872,4]
[357038679,1743610246653,-213.62926438,0.000199,2]
[357038680,1743610246664,-272.85096142,0.00019999,2]
[357038682,1743610246673,-48874.99527799,0.0002,2]
[357038684,1743610246695,-3474.48,0.0002,2]
[357038686,1743610307819,154.06,0.000249,31]
[357038687,1743610307877,154.06,0.000249,31]
[357038688,1743610307936,154.06,0.000249,31]
[357038689,1743610308016,154.06,0.000249,31]
[357038690,1743610308066,154.06,0.000249,31]
[357038691,1743610308125,154.06,0.000249,31]
[357038693,1743610758562,212.582263,0.00025,30]
[357038694,1743610758900,212.582263,0.00025,30]
[357038695,1743610759213,212.582263,0.00025,30]
[357038696,1743610759537,212.582263,0.00025,30]
[357038697,1743610759844,212.582263,0.00025,30]
[357038698,1743610913704,154.07,0.000249,31]
[357038699,1743610913759,154.07,0.000249,31]
[357038700,1743610913825,154.07,0.000249,31]
[357038701,1743610913878,154.07,0.000249,31]
[357038702,1743610913959,154.07,0.000249,31]
[357038703,1743610914003,154.07,0.000249,31]
[357038704,1743610914083,154.07,0.000249,31]
[357038705,1743610997081,156.306108,0.00025,30]
[357038706,1743611011476,155.977301,0.00025,30]
[357038707,1743611014228,172.585878,0.00013699,2]
[357038710,1743611157744,11553.43553795,0.00025,30]
[357038733,1743611358177,152.402177,0.00025,30]
[357038734,1743611358515,152.402177,0.00025,30]
[357038735,1743611358837,152.402177,0.00025,30]
[357038736,1743611359174,152.402177,0.00025,30]
[357038737,1743611359475,152.402177,0.00025,30]
[357038755,1743611432249,-262.60356982,0.0001515,20]
[357038756,1743611432260,-407.96641018,0.00016727,2]
[357038811,1743611438280,-8024.48281975,0.00016727,2]
[357038813,1743611438292,-2534.75347522,0.00016727,2]
[357038815,1743611438304,-1672.44913646,0.00016727,2]
[357038869,1743611440539,-12260.34815839,0.00016727,2]
[357038870,1743611440549,-339.323339,0.00016925,2]
[357038871,1743611440559,-332.31469702,0.00017237,3]
[357038872,1743611440568,-300.0,0.0001741,2]
[357038873,1743611440578,-10000.0,0.00017411,2]
[357038874,1743611440587,-670.571816,0.00017538,2]
[357038875,1743611440597,-632.6,0.00017638,2]
[357038876,1743611440606,-632.6,0.00017638,2]
[357038877,1743611440615,-500.0,0.00017648,2]
[357038878,1743611440626,-596.94,0.00017648,2]
[357038879,1743611440635,-500.0,0.00017648,2]
[357038880,1743611440645,-9657.2481037,0.00017649,2]
[357038881,1743611440655,-632.6,0.00017889,2]
[357038882,1743611440664,-14854.32793947,0.00017899,2]
[357038883,1743611440674,-2451.31132842,0.00017899,2]
[357038884,1743611440684,-632.6,0.00017989,2]
[357038885,1743611440693,-632.6,0.00017989,2]
[357038886,1743611440703,-632.6,0.00017989,2]
[357038887,1743611440712,-632.6,0.0001799,2]
[357038888,1743611440722,-632.6,0.0001799,2]
[357038889,1743611440731,-250.0,0.00017997,2]
[357038891,1743611440741,-500.0,0.00017999,2]
[357038893,1743611440751,-500.0,0.00017999,2]
[357038894,1743611440760,-232.31469702,0.00017999,2]
[357038895,1743611440770,-500.0,0.00017999,2]
[357038896,1743611440779,-500.0,0.00017999,2]
[357038897,1743611440792,-482.8671031,0.00017999,2]
[357038898,1743611440802,-500.0,0.00017999,2]
[357038899,1743611440813,-500.0,0.00017999,2]
[357038900,1743611440822,-500.0,0.00017999,2]
[357038901,1743611440831,-500.0,0.00017999,2]
[357038902,1743611440841,-500.0,0.00017999,2]
[357038903,1743611440851,-500.0,0.00017999,2]
[357038904,1743611440860,-500.0,0.00017999,2]
[357038905,1743611440870,-500.0,0.00017999,2]
[357038906,1743611440880,-500.0,0.00017999,2]
[357038907,1743611440890,-500.0,0.00017999,2]
[357038908,1743611440900,-500.0,0.00017999,2]
[357038909,1743611440909,-500.0,0.00017999,2]
[357038910,1743611440919,-500.0,0.00017999,2]
[357038911,1743611440929,-500.0,0.00017999,2]
[357038912,1743611440938,-523.55419488,0.00017999,2]
[357038913,1743611440948,-500.0,0.00017999,2]
[357038914,1743611440957,-500.0,0.00017999,2]
[357038915,1743611440967,-500.0,0.00017999,2]
[357038916,1743611440977,-500.0,0.00017999,2]
[357038917,1743611440987,-1000.0,0.00018,2]
[357038918,1743611440996,-1000.0,0.00018,2]
[357038919,1743611441006,-1000.0,0.00018,2]
[357038920,1743611441015,-1000.0,0.00018,2]
[357038921,1743611441025,-1000.0,0.00018,2]
[357038922,1743611441035,-1000.0,0.00018,2]
[357038923,1743611441044,-276.82148499,0.00018618,2]
[357038924,1743611441054,-276.82148499,0.00018679,2]
[357038925,1743611441068,-182.75371659,0.00018699,2]
[357038926,1743611441078,-632.6,0.00018708,2]
[357038927,1743611441088,-632.6,0.00018709,2]
[357038928,1743611441100,-500.0,0.00018718,2]
[357038929,1743611441112,-539.09641174,0.00018718,2]
[357038930,1743611441123,-500.0,0.00018718,2]
[357038931,1743611441133,-500.0,0.00018718,2]
[357038932,1743611441144,-500.0,0.00018718,2]
[357038933,1743611441155,-500.0,0.00018718,2]
[357038934,1743611441165,-500.0,0.00018718,2]
[357038935,1743611441174,-500.0,0.00018718,2]
[357038936,1743611441183,-491.88,0.00018718,2]
[357038937,1743611441193,-500.0,0.00018718,2]
[357038938,1743611441202,-500.0,0.00018718,2]
[357038939,1743611441211,-500.0,0.00018718,2]
[357038940,1743611441221,-500.0,0.00018718,2]
[357038941,1743611441231,-500.0,0.00018718,2]
[357038942,1743611441240,-592.81,0.00018718,2]
[357038943,1743611441250,-500.0,0.00018719,2]
[357038944,1743611441262,-500.0,0.0001872,2]
[357038945,1743611441272,-500.0,0.0001872,2]
[357038946,1743611441282,-500.0,0.0001872,2]
[357038947,1743611441291,-214.70014629,0.0001872,2]
[357038948,1743611441301,-500.0,0.0001872,2]
[357038949,1743611441311,-300.0,0.0001872,2]
[357038950,1743611441320,-500.0,0.0001872,2]
[357038951,1743611441330,-542.0,0.00018721,2]
[357038952,1743611441340,-2258.0,0.00018721,2]
[357038953,1743611441349,-276.82148499,0.00018739,2]
[357038954,1743611441358,-302.0,0.00018789,2]
[357038955,1743611441368,-155.0,0.00018789,2]
[357038956,1743611441378,-490.53,0.0001879,3]
[357038957,1743611441388,-500.0,0.00018799,2]
[357038958,1743611441397,-532.02730608,0.00018799,2]
[357038959,1743611441407,-21294.85658842,0.00018799,2]
[357038960,1743611441416,-215.41227855,0.00018799,2]
[357038961,1743611441425,-41395.92555639,0.000188,2]
[357038977,1743611518862,154.09,0.000249,31]
[357038978,1743611518930,154.09,0.000249,31]
[357038979,1743611518986,154.09,0.000249,31]
[357038980,1743611519035,154.09,0.000249,31]
[357038981,1743611519407,154.09,0.000249,31]
[357038982,1743611519454,154.09,0.000249,31]
[357038983,1743611519494,154.09,0.000249,31]
[357038984,1743611535376,156.831139,0.00025,30]
[357038985,1743611535689,156.831139,0.00025,30]
[357038986,1743611535998,156.831139,0.00025,30]
[357038987,1743611536306,156.831139,0.00025,30]
[357038988,1743611536620,156.831139,0.00025,30]
[357038989,1743611597347,156.831139,0.00025,30]
[357038990,1743611597645,156.831139,0.00025,30]
[357038991,1743611598171,156.831139,0.00025,30]
[357038992,1743611598494,156.831139,0.00025,30]
[357038993,1743611598830,156.831139,0.00025,30]
[357038994,1743611959190,366.755477,0.00025,30]
[357038995,1743611959934,366.755477,0.00025,30]
[357038996,1743611960400,366.755477,0.00025,30]
[357038997,1743611960570,366.755477,0.00025,30]
[357038998,1743611960873,366.755477,0.00025,30]
[357038999,1743612123267,154.1,0.000249,31]
[357039000,1743612123329,154.1,0.000249,31]
[357039001,1743612123378,154.1,0.000249,31]
[357039002,1743612123443,154.1,0.000249,31]
[357039003,1743612123508,154.1,0.000249,31]
[357039004,1743612123566,154.1,0.000249,31]
[357039005,1743612123628,154.1,0.000249,31]
[357039006,1743612239101,173.898403,0.00013699,2]
[357039026,1743612558231,293.404382,0.00025,30]
[357039027,1743612558544,293.404382,0.00025,30]
[357039028,1743612559309,293.404382,0.00025,30]
[357039029,1743612559635,293.404382,0.00025,30]
[357039030,1743612559942,293.404382,0.00025,30]
[357039080,1743612632632,-555.399999,0.00015,2]
[357039082,1743612632641,-5552.2764141,0.000163,2]
[357039084,1743612632653,-425.8333149,0.00016421,2]
[357039086,1743612632662,-300.0,0.00016998,2]
[357039087,1743612632671,-852.63,0.00016999,2]
[357039088,1743612632681,-500.0,0.00016999,2]
[357039089,1743612632690,-1000.0,0.00016999,7]
[357039090,1743612632699,-500.0,0.00016999,2]
[357039091,1743612632709,-500.0,0.00016999,2]
[357039092,1743612632719,-13967.0,0.00017,2]
[357039095,1743612632728,-162.669405,0.00017185,2]
[357039098,1743612632737,-162.669405,0.00017206,2]
[357039101,1743612632746,-162.669405,0.00017228,2]
[357039104,1743612632756,-162.669405,0.00017249,2]
[357039107,1743612632766,-2796.6152689,0.0001725,2]
[357039109,1743612632776,-162.669405,0.00017271,2]
[357039110,1743612632786,-852.63,0.00017273,2]
[357039111,1743612632795,-500.0,0.00017273,2]
[357039112,1743612632805,-500.0,0.00017273,2]
[357039113,1743612632814,-500.0,0.00017273,2]
[357039114,1743612632825,-152.0,0.0001731,2]
[357039115,1743612632834,-2495.08474501,0.00017437,2]
[357039116,1743612632844,-502.61713276,0.00017535,2]
[357039117,1743612632854,-275.87412257,0.00017535,2]
[357039118,1743612632864,-500.0,0.00017535,2]
[357039119,1743612632874,-500.0,0.00017536,2]
[357039120,1743612632883,-500.0,0.00017536,2]
[357039121,1743612632893,-500.0,0.00017536,2]
[357039122,1743612632904,-500.0,0.00017536,2]
[357039123,1743612632913,-500.0,0.00017537,2]
[357039124,1743612632923,-500.0,0.00017537,2]
[357039125,1743612632934,-500.0,0.00017537,2]
[357039126,1743612632943,-500.0,0.00017537,2]
[357039127,1743612632952,-500.0,0.00017537,2]
[357039128,1743612632961,-500.0,0.00017537,2]
[357039129,1743612632971,-500.0,0.00017537,2]
[357039130,1743612632980,-500.0,0.00017537,2]
[357039131,1743612632989,-500.0,0.00017537,2]
[357039132,1743612632999,-500.0,0.00017537,2]
[357039133,1743612633009,-500.0,0.00017537,2]
[357039134,1743612633019,-500.0,0.00017537,2]
[357039135,1743612633030,-500.0,0.00017537,2]
[357039136,1743612633040,-500.0,0.00017537,2]
[357039137,1743612633051,-500.0,0.00017537,2]
[357039138,1743612633061,-500.0,0.00017537,2]
[357039139,1743612633071,-500.0,0.00017537,2]
[357039140,1743612633081,-500.0,0.00017537,2]
[357039141,1743612633091,-500.0,0.00017537,2]
[357039142,1743612633102,-821.96,0.00017537,2]
[357039143,1743612633112,-500.0,0.00017537,2]
[357039144,1743612633122,-500.0,0.00017537,2]
[357039145,1743612633132,-500.0,0.00017537,2]
[357039146,1743612633143,-500.0,0.00017537,2]
[357039147,1743612633153,-9288.571928,0.00017538,2]
[357039148,1743612633164,-852.63,0.00017547,2]
[357039149,1743612633174,-500.0,0.00017547,2]
[357039150,1743612633184,-500.0,0.00017547,2]
[357039151,1743612633194,-500.0,0.00017547,2]
[357039152,1743612633214,-151.0,0.00017636,2]
[357039153,1743612633224,-151.0,0.00017636,2]
[357039154,1743612633234,-500.0,0.00017647,2]
[357039155,1743612633244,-500.0,0.00017647,2]
[357039156,1743612633254,-500.0,0.00017647,2]
[357039157,1743612633264,-525.76124835,0.00017647,2]
[357039158,1743612633273,-500.0,0.00017647,2]
[357039159,1743612633283,-500.0,0.00017647,2]
[357039160,1743612633293,-500.0,0.00017647,2]
[357039161,1743612633303,-206.77751909,0.00017647,2]
[357039162,1743612633314,-500.0,0.00017647,2]
[357039163,1743612633324,-500.0,0.00017647,2]
[357039164,1743612633335,-500.0,0.00017647,2]
[357039165,1743612633345,-500.0,0.00017647,2]
[357039166,1743612633356,-500.0,0.00017647,2]
[357039167,1743612633366,-500.0,0.00017647,2]
[357039168,1743612633376,-500.0,0.00017647,2]
[357039169,1743612633387,-500.0,0.00017647,2]
[357039170,1743612633396,-500.0,0.00017647,2]
[357039171,1743612633407,-500.0,0.00017647,2]
[357039172,1743612633417,-500.0,0.00017647,2]
[357039173,1743612633428,-500.0,0.00017647,2]
[357039174,1743612633438,-500.0,0.00017647,2]
[357039175,1743612633453,-500.0,0.00017647,2]
[357039176,1743612633463,-500.0,0.00017647,2]
[357039177,1743612633474,-500.0,0.00017647,2]
[357039178,1743612633484,-500.0,0.00017647,2]
[357039179,1743612633495,-500.0,0.00017647,2]
[357039180,1743612633504,-500.0,0.00017648,2]
[357039181,1743612633514,-500.0,0.00017648,2]
[357039182,1743612633526,-500.0,0.00017648,2]
[357039183,1743612633536,-500.0,0.00017648,2]
[357039184,1743612633546,-500.0,0.00017648,2]
[357039185,1743612633557,-500.0,0.00017648,2]
[357039186,1743612633567,-500.0,0.00017648,2]
[357039187,1743612633578,-500.0,0.00017648,2]
[357039188,1743612633588,-500.0,0.0001781,2]
[357039189,1743612633598,-500.0,0.0001781,2]
[357039190,1743612633608,-500.0,0.0001781,2]
[357039191,1743612633618,-500.0,0.0001781,2]
[357039192,1743612633628,-500.0,0.00017811,2]
[357039193,1743612633638,-500.0,0.00017811,2]
[357039194,1743612633648,-500.0,0.00017811,2]
[357039195,1743612633659,-500.0,0.00017811,2]
[357039196,1743612633669,-500.0,0.00017811,2]
[357039197,1743612633680,-500.0,0.00017811,2]
[357039198,1743612633690,-500.0,0.00017811,2]
[357039199,1743612633700,-500.0,0.00017811,2]
[357039200,1743612633710,-500.0,0.00017811,2]
[357039201,1743612633720,-500.0,0.00017811,2]
[357039202,1743612633731,-500.0,0.00017811,2]
[357039203,1743612633741,-500.0,0.00017811,2]
[357039204,1743612633750,-500.0,0.00017811,2]
[357039205,1743612633760,-500.0,0.00017811,2]
[357039206,1743612633770,-500.0,0.00017811,2]
[357039207,1743612633780,-500.0,0.00017811,2]
[357039208,1743612633790,-500.0,0.00017811,2]
[357039209,1743612633800,-500.0,0.00017811,2]
[357039210,1743612633810,-500.0,0.00017811,2]
[357039211,1743612633820,-821.96,0.00017811,2]
[357039212,1743612633833,-500.0,0.00017811,2]
[357039213,1743612633843,-500.0,0.00017811,2]
[357039214,1743612633853,-500.0,0.00017811,2]
[357039215,1743612633862,-500.0,0.00017811,2]
[357039216,1743612633872,-852.63,0.00017821,2]
[357039217,1743612633883,-500.0,0.00017821,2]
[357039218,1743612633893,-500.0,0.00017821,2]
[357039219,1743612633902,-500.0,0.00017821,2]
[357039220,1743612633912,-610.03654576,0.0001792,2]
[357039221,1743612633922,-500.0,0.0001792,2]
[357039222,1743612633932,-500.0,0.00017921,2]
[357039223,1743612633942,-500.0,0.00017921,2]
[357039224,1743612633952,-500.0,0.00017921,2]
[357039225,1743612633961,-500.0,0.00017921,2]
[357039226,1743612633972,-500.0,0.00017921,2]
[357039227,1743612633982,-500.0,0.00017921,2]
[357039228,1743612633992,-500.0,0.00017921,2]
[357039229,1743612634002,-500.0,0.00017921,2]
[357039230,1743612634012,-500.0,0.00017921,2]
[357039231,1743612634022,-500.0,0.00017921,2]
[357039232,1743612634031,-500.0,0.00017921,2]
[357039233,1743612634041,-500.0,0.00017921,2]
[357039234,1743612634053,-500.0,0.00017921,2]
[357039235,1743612634062,-500.0,0.00017921,2]
[357039236,1743612634072,-500.0,0.00017921,2]
[357039237,1743612634082,-500.0,0.00017921,2]
[357039238,1743612634092,-500.0,0.00017921,2]
[357039239,1743612634102,-500.0,0.00017921,2]
[357039240,1743612634112,-500.0,0.00017921,2]
[357039241,1743612634122,-500.0,0.00017921,2]
[357039242,1743612634132,-500.0,0.00017921,2]
[357039243,1743612634142,-500.0,0.00017922,2]
[357039244,1743612634153,-500.0,0.00017922,2]
[357039245,1743612634165,-500.0,0.00017922,2]
[357039246,1743612634175,-500.0,0.00017922,2]
[357039247,1743612634185,-500.0,0.00017922,2]
[357039248,1743612634194,-500.0,0.00017922,2]
[357039249,1743612634204,-500.0,0.00017922,2]
[357039250,1743612634214,-500.0,0.00018084,2]
[357039251,1743612634225,-500.0,0.00018084,2]
[357039252,1743612634235,-500.0,0.00018084,2]
[357039253,1743612634416,-500.0,0.00018084,2]
[357039254,1743612634426,-500.0,0.00018085,2]
[357039255,1743612634442,-500.0,0.00018085,2]
[357039256,1743612634452,-500.0,0.00018085,2]
[357039257,1743612634462,-500.0,0.00018085,2]
[357039258,1743612634471,-500.0,0.00018085,2]
[357039259,1743612634483,-500.0,0.00018085,2]
[357039260,1743612634493,-500.0,0.00018085,2]
[357039261,1743612634503,-643.79,0.00018085,2]
[357039262,1743612634512,-618.17706456,0.00018085,2]
[357039263,1743612634523,-500.0,0.00018085,2]
[357039264,1743612634534,-500.0,0.00018085,2]
[357039265,1743612634543,-500.0,0.00018085,2]
[357039266,1743612634553,-500.0,0.00018085,2]
[357039267,1743612634562,-500.0,0.00018085,2]
[357039268,1743612634571,-500.0,0.00018085,2]
[357039269,1743612634581,-500.0,0.00018085,2]
[357039270,1743612634591,-500.0,0.00018085,2]
[357039271,1743612634600,-500.0,0.00018085,2]
[357039272,1743612634610,-500.0,0.00018085,2]
[357039273,1743612634621,-821.96,0.00018085,2]
[357039274,1743612634631,-500.0,0.00018085,2]
[357039275,1743612634641,-500.0,0.00018085,2]
[357039276,1743612634654,-500.0,0.00018085,2]
[357039277,1743612634663,-500.0,0.00018085,2]
[357039278,1743612634673,-852.63,0.00018095,2]
[357039279,1743612634683,-522.52,0.00018095,2]
[357039280,1743612634693,-500.0,0.00018095,2]
[357039281,1743612634703,-500.0,0.00018095,2]
[357039282,1743612634713,-500.0,0.00018195,2]
[357039283,1743612634723,-500.0,0.00018195,2]
[357039284,1743612634732,-500.0,0.00018195,2]
[357039285,1743612634743,-500.0,0.00018195,2]
[357039286,1743612634753,-614.74413289,0.00018195,2]
[357039287,1743612634762,-500.0,0.00018195,2]
[357039288,1743612634772,-500.0,0.00018195,2]
[357039289,1743612634782,-500.0,0.00018195,2]
[357039290,1743612634791,-500.0,0.00018195,2]
[357039291,1743612634802,-500.0,0.00018195,2]
[357039292,1743612634812,-500.0,0.00018195,2]
[357039293,1743612634822,-500.0,0.00018195,2]
[357039294,1743612634832,-500.0,0.00018195,2]
[357039295,1743612634842,-500.0,0.00018195,2]
[357039296,1743612634852,-500.0,0.00018195,2]
[357039297,1743612634862,-500.0,0.00018195,2]
[357039298,1743612634872,-500.0,0.00018195,2]
[357039299,1743612634881,-500.0,0.00018195,2]
[357039300,1743612634891,-500.0,0.00018195,2]
[357039301,1743612634903,-500.0,0.00018195,2]
[357039302,1743612634913,-500.0,0.00018195,2]
[357039303,1743612634923,-500.0,0.00018196,2]
[357039304,1743612634933,-500.0,0.00018196,2]
[357039305,1743612634944,-405.01359513,0.00018196,2]
[357039306,1743612634954,-500.0,0.00018196,2]
[357039307,1743612634964,-500.0,0.00018196,2]
[357039308,1743612634974,-500.0,0.00018196,2]
[357039309,1743612634984,-500.0,0.00018196,2]
[357039310,1743612634994,-2853.80295221,0.000183,2]
[357039311,1743612635015,-542.0,0.00018301,2]